fUST/lending_fUST_20240621
["ID","MTS","AMOUNT","RATE_DAILY","PERIOD"]
[330027822,1718952641496,-500.0,0.00054602,120]
[330027823,1718952641508,-4528.77,0.00054602,120]
[330027824,1718952641519,-500.0,0.00054602,120]
[330027825,1718952641529,-500.0,0.00054602,120]
[330027826,1718952641539,-10804.78,0.00054602,120]
[330027827,1718952641551,-616.69,0.00054602,120]
[330027828,1718952641560,-2319.04,0.00054602,120]
[330027829,1718952641569,-30195.57,0.00054602,120]
[330027830,1718952641578,-1056.65,0.00054602,120]
[330027831,1718952641589,-752.3,0.00054602,120]
[330027832,1718952641598,-500.0,0.00054602,120]
[330027833,1718952641608,-3202.9,0.00054602,21]
[330027834,1718952641617,-500.0,0.00054602,120]
[330027835,1718952641627,-1818.53,0.00054602,120]
[330027836,1718952641636,-1213.45,0.00054602,120]
[330027837,1718952641645,-500.0,0.00054602,120]
[330027838,1718952641655,-500.0,0.00054602,120]
[330027839,1718952641664,-500.0,0.00054602,120]
[330027840,1718952641674,-500.0,0.00054602,120]
[330027841,1718952641683,-1484.51,0.00054602,120]
[330027842,1718952641691,-600.0,0.00054602,120]
[330027843,1718952641700,-5467.88,0.00054602,120]
[330027844,1718952641709,-500.0,0.00054602,120]
[330027845,1718952641718,-6177.59,0.00054602,120]
[330027846,1718952641727,-6187.12,0.00054602,120]
[330027847,1718952641737,-500.0,0.00054602,120]
[330027848,1718952641746,-607.27,0.00054602,120]
[330027849,1718952641755,-500.0,0.00054602,120]
[330027850,1718952641765,-500.0,0.00054602,120]
[330027851,1718952641774,-1355.44,0.00054602,120]
[330027852,1718952641783,-2018.32,0.00054602,120]
[330027853,1718952641793,-619.88,0.00054602,120]
[330027854,1718952641802,-500.0,0.00054602,120]
[330027855,1718952641811,-994.07,0.00054602,120]
[330027856,1718952641820,-500.0,0.00054602,120]
[330027857,1718952641829,-648.89,0.00054602,120]
[330027858,1718952641838,-803.51,0.00054602,120]
[330027859,1718952641848,-500.0,0.00054602,120]
[330027860,1718952641858,-1223.05,0.00054602,120]
[330027861,1718952641867,-500.0,0.00054602,120]
[330027862,1718952641876,-647.22835727,0.00054602,120]
[330027863,1718952641886,-500.0,0.00054602,120]
[330027864,1718952641895,-500.0,0.00054602,120]
[330027865,1718952641905,-614.69,0.00054602,120]
[330027866,1718952641916,-500.0,0.00054602,120]
[330027867,1718952641926,-500.0,0.00054602,120]
[330027868,1718952641934,-5452.75,0.00054602,120]
[330027869,1718952641943,-1094.11,0.00054602,120]
[330027870,1718952641952,-998.74,0.00054602,120]
[330027871,1718952641961,-554.48,0.00054602,120]
[330027872,1718952641971,-1168.47,0.00054602,120]
[330027873,1718952641980,-500.0,0.00054602,120]
[330027874,1718952641990,-877.17,0.00054602,120]
[330027875,1718952641999,-654.51,0.00054602,120]
[330027876,1718952642009,-500.0,0.00054602,120]
[330027877,1718952642019,-1437.36,0.00054602,120]
[330027878,1718952642029,-930.31,0.00054602,120]
[330027879,1718952642038,-1924.89,0.00054602,120]
[330027880,1718952642047,-537.47,0.00054602,120]
[330027881,1718952642056,-1877.28,0.00054602,120]
[330027882,1718952642065,-591.52,0.00054602,120]
[330027883,1718952642074,-1438.88,0.00054602,120]
[330027884,1718952642083,-500.0,0.00054602,120]
[330027885,1718952642093,-1458.08,0.00054602,120]
[330027886,1718952642102,-500.0,0.00054602,120]
[330027887,1718952642111,-500.0,0.00054602,120]
[330027888,1718952642120,-4625.93,0.00054602,120]
[330027889,1718952642130,-3501.87,0.00054602,120]
[330027890,1718952642139,-2550.53,0.00054666,120]
[330027891,1718952642148,-2550.53,0.00054666,120]
[330027892,1718952642157,-973.17,0.00054666,120]
[330027893,1718952642167,-973.17,0.00054666,120]
[330027894,1718952642176,-500.0,0.00054682,120]
[330027895,1718952642186,-2550.53,0.00054682,120]
[330027896,1718952642195,-2550.53,0.00054682,120]
[330027897,1718952642204,-973.17,0.00054682,120]
[330027898,1718952642214,-500.0,0.00054683,120]
[330027899,1718952642223,-500.0,0.00054683,120]
[330027900,1718952642232,-500.0,0.00054683,120]
[330027901,1718952642242,-500.0,0.00054683,120]
[330027902,1718952642251,-279.22217506,0.00054683,120]
[330027903,1718952642260,-151.0,0.00054683,14]
[330027904,1718952642269,-2550.53,0.00054683,120]
[330027905,1718952642278,-2550.53,0.00054683,120]
[330027906,1718952642288,-2550.53,0.00054683,120]
[330027907,1718952642297,-2550.53,0.00054683,120]
[330027908,1718952642306,-2550.53,0.00054683,120]
[330027909,1718952642315,-2550.53,0.00054683,120]
[330027910,1718952642324,-2550.64223108,0.00054683,120]
[330027911,1718952642333,-973.17,0.00054683,120]
[330027912,1718952642343,-973.17,0.00054683,120]
[330027913,1718952642352,-389.84309575,0.00054683,120]
[330027914,1718952642366,-583.32690425,0.00054683,120]
[330027915,1718952642376,-973.17,0.00054683,120]
[330027916,1718952642386,-785.23732929,0.00054683,120]
[330027917,1718952642397,-15840.87267071,0.00054683,120]
[330027918,1718952642406,-550.55,0.00054683,120]
[330027919,1718952642416,-500.0,0.00054684,120]
[330027920,1718952642426,-500.0,0.00054684,120]
[330027921,1718952642435,-227.19035331,0.00054684,120]
[330027922,1718952642444,-598.55,0.00054684,120]
[330027923,1718952642453,-2000.0,0.00054684,5]
[330027924,1718952642463,-821.52,0.00054684,120]
[330027925,1718952642472,-500.0,0.00054684,120]
[330027926,1718952642481,-500.0,0.00054684,120]
[330027927,1718952642491,-356.7651221,0.00054684,120]
[330027928,1718952642500,-500.0,0.00054684,120]
[330027929,1718952642510,-540.15575351,0.00054684,120]
[330027930,1718952642524,-500.0,0.00054684,120]
[330027931,1718952642532,-500.0,0.00054684,7]
[330027932,1718952642542,-500.0,0.00054684,120]
[330027933,1718952642553,-195.156708,0.00054684,14]
[330027934,1718952642563,-500.0,0.00054684,120]
[330027935,1718952642572,-500.0,0.00054684,120]
[330027936,1718952642581,-500.0,0.00054684,120]
[330027937,1718952642591,-500.0,0.00054684,120]
[330027938,1718952642601,-500.0,0.00054684,120]
[330027939,1718952642611,-500.0,0.00054684,120]
[330027940,1718952642620,-500.0,0.00054684,120]
[330027941,1718952642630,-507.99,0.00054684,120]
[330027942,1718952642639,-638.09,0.00054684,120]
[330027943,1718952642647,-1084.53,0.00054684,120]
[330027944,1718952642657,-500.0,0.00054684,120]
[330027945,1718952642667,-500.0,0.00054684,2]
[330027946,1718952642676,-1254.12,0.00054684,120]
[330027947,1718952642684,-500.0,0.00054684,120]
[330027948,1718952642694,-1389.63,0.00054684,120]
[330027949,1718952642703,-500.0,0.00054684,120]
[330027950,1718952642712,-500.0,0.00054684,120]
[330027951,1718952642721,-1079.75,0.00054684,120]
[330027952,1718952642731,-523.71,0.00054684,120]
[330027953,1718952642740,-151.0,0.00054684,14]
[330027954,1718952642749,-500.0,0.00054684,120]
[330027956,1718952642758,-500.0,0.00054684,120]
[330027957,1718952642767,-250.0,0.00054684,120]
[330027958,1718952642776,-642.97,0.00054684,120]
[330027959,1718952642785,-500.0,0.00054684,120]
[330027960,1718952642794,-500.0,0.00054684,120]
[330027961,1718952642803,-500.0,0.00054684,120]
[330027962,1718952642812,-500.0,0.00054684,120]
[330027963,1718952642821,-1526.55,0.00054684,120]
[330027964,1718952642831,-4167.24,0.00054684,120]
[330027965,1718952642840,-500.0,0.00054684,120]
[330027966,1718952642849,-500.0,0.00054684,120]
[330027967,1718952642858,-566.08,0.00054684,120]
[330027968,1718952642867,-151.0,0.00054684,14]
[330027969,1718952642876,-500.0,0.00054684,120]
[330027970,1718952642886,-606.05,0.00054684,120]
[330027971,1718952642895,-980.21,0.00054684,120]
[330027972,1718952642904,-591.12,0.00054684,120]
[330027973,1718952642914,-557.42,0.00054684,120]
[330027974,1718952642923,-500.0,0.00054684,120]
[330027975,1718952642933,-500.0,0.00054684,120]
[330027976,1718952642943,-1578.73,0.00054684,120]
[330027977,1718952642952,-1235.9,0.00054684,120]
[330027978,1718952642961,-1816.5,0.00054684,120]
[330027979,1718952642971,-500.0,0.00054684,120]
[330027980,1718952642980,-500.0,0.00054684,120]
[330027981,1718952642989,-151.0,0.00054684,14]
[330027982,1718952642998,-151.0,0.00054684,14]
[330027983,1718952643007,-151.0,0.00054684,14]
[330027984,1718952643017,-151.0,0.00054684,14]
[330027986,1718952643026,-151.0,0.00054684,14]
[330027988,1718952643035,-151.0,0.00054684,14]
[330027989,1718952643044,-500.0,0.00054684,120]
[330027990,1718952643053,-1090.471896,0.00054684,14]
[330027991,1718952643062,-1090.471896,0.00054684,14]
[330027992,1718952643072,-500.0,0.00054684,120]
[330027993,1718952643081,-1090.471896,0.00054684,14]
[330027994,1718952643090,-1090.471896,0.00054684,14]
[330027995,1718952643099,-730.72,0.00054684,120]
[330027996,1718952643107,-500.0,0.00054684,120]
[330027997,1718952643116,-500.0,0.00054684,7]
[330027998,1718952643125,-500.0,0.00054684,120]
[330027999,1718952643135,-1057.23,0.00054684,120]
[330028000,1718952643144,-500.0,0.00054684,120]
[330028001,1718952643153,-151.0,0.00054684,14]
[330028002,1718952643163,-151.0,0.00054684,14]
[330028003,1718952643174,-151.0,0.00054684,14]
[330028004,1718952643183,-151.0,0.00054684,14]
[330028005,1718952643192,-500.0,0.00054684,120]
[330028006,1718952643201,-1156.35,0.00054684,120]
[330028007,1718952643212,-1050.012824,0.00054684,14]
[330028008,1718952643222,-1050.012824,0.00054684,14]
[330028009,1718952643232,-9.08700685,0.00054684,120]
[330028015,1718952643352,-262.06,0.00054602,120]
[330028017,1718952643364,-237.94,0.00054602,120]
[330028018,1718952643374,-490.91299315,0.00054684,120]
[330028019,1718952643383,-1050.012824,0.00054684,14]
[330028020,1718952643393,-1050.012824,0.00054684,14]
[330028021,1718952643490,-151.0,0.00054684,14]
[330028022,1718952643500,-64.06736884,0.00054684,14]
[330028025,1718952643818,-642.32,0.0005452,120]
[330028026,1718952643828,-86.93263116,0.00054684,14]
[330028027,1718952643839,-2790.00801453,0.00054684,120]
[330028028,1718952643850,-1738.76198547,0.00054684,120]
[330028029,1718952643859,-151.0,0.00054684,14]
[330028030,1718952643869,-151.0,0.00054684,14]
[330028031,1718952643879,-500.0,0.00054684,120]
[330028032,1718952643888,-500.0,0.00054684,120]
[330028033,1718952643898,-10804.78,0.00054684,120]
[330028034,1718952643908,-151.0,0.00054684,14]
[330028035,1718952643918,-151.0,0.00054684,14]
[330028036,1718952643928,-616.69,0.00054684,120]
[330028037,1718952643938,-2319.04,0.00054684,120]
[330028038,1718952643948,-30195.57,0.00054684,120]
[330028039,1718952643958,-1056.65,0.00054684,120]
[330028040,1718952643967,-752.3,0.00054684,120]
[330028041,1718952643977,-500.0,0.00054684,120]
[330028042,1718952643986,-3202.9,0.00054684,21]
[330028043,1718952643995,-500.0,0.00054684,120]
[330028044,1718952644004,-1818.53,0.00054684,120]
[330028045,1718952644014,-1213.45,0.00054684,120]
[330028046,1718952644024,-500.0,0.00054684,120]
[330028047,1718952644033,-500.0,0.00054684,120]
[330028048,1718952644043,-240.91562499,0.00054684,120]
[330028049,1718952644052,-500.0,0.00054684,120]
[330028050,1718952644061,-151.0,0.00054684,14]
[330028051,1718952644071,-151.0,0.00054684,14]
[330028052,1718952644081,-1484.51,0.00054684,120]
[330028053,1718952644090,-3340.148859,0.00054684,14]
[330028054,1718952644099,-3340.148859,0.00054684,14]
[330028055,1718952644109,-600.0,0.00054684,120]
[330028056,1718952644119,-4518.11394407,0.00054684,120]
[330028064,1718952648049,-949.76605593,0.00054684,120]
[330028065,1718952648059,-500.0,0.00054684,120]
[330028066,1718952648068,-6177.59,0.00054684,120]
[330028067,1718952648078,-6187.12,0.00054684,120]
[330028068,1718952648087,-3340.148859,0.00054684,14]
[330028069,1718952648096,-3340.148859,0.00054684,14]
[330028070,1718952648105,-607.27,0.00054684,120]
[330028071,1718952648115,-500.0,0.00054684,120]
[330028072,1718952648124,-505.31201891,0.00054684,120]
[330028073,1718952648133,-1355.44,0.00054684,120]
[330028074,1718952648229,-2018.32,0.00054684,120]
[330028075,1718952648239,-619.88,0.00054684,120]
[330028076,1718952648248,-500.0,0.00054684,120]
[330028077,1718952648258,-994.07,0.00054684,120]
[330028078,1718952648267,-244.32526721,0.00054684,120]
[330028079,1718952648276,-648.89,0.00054684,120]
[330028080,1718952648286,-803.51,0.00054684,120]
[330028081,1718952648295,-500.0,0.00054684,120]
[330028082,1718952648305,-1223.05,0.00054684,120]
[330028083,1718952648314,-500.0,0.00054684,120]
[330028084,1718952648323,-500.0,0.00054684,120]
[330028085,1718952648332,-500.0,0.00054684,120]
[330028086,1718952648342,-614.69,0.00054684,120]
[330028087,1718952648351,-500.0,0.00054684,120]
[330028088,1718952648360,-5452.75,0.00054684,120]
[330028089,1718952648369,-1094.11,0.00054684,120]
[330028090,1718952648379,-998.74,0.00054684,120]
[330028091,1718952648389,-500.0,0.00054684,120]
[330028092,1718952648398,-554.48,0.00054684,120]
[330028093,1718952648408,-1168.47,0.00054684,120]
[330028094,1718952648418,-500.0,0.00054684,120]
[330028095,1718952648428,-877.17,0.00054684,120]
[330028096,1718952648438,-654.51,0.00054684,120]
[330028097,1718952648447,-500.0,0.00054684,120]
[330028098,1718952648457,-1437.36,0.00054684,120]
[330028099,1718952648467,-930.31,0.00054684,120]
[330028100,1718952648477,-1924.89,0.00054684,120]
[330028101,1718952648487,-537.47,0.00054684,120]
[330028102,1718952648496,-1877.28,0.00054684,120]
[330028103,1718952648506,-591.52,0.00054684,120]
[330028104,1718952648520,-1438.88,0.00054684,120]
[330028105,1718952648530,-500.0,0.00054684,120]
[330028106,1718952648540,-1458.08,0.00054684,120]
[330028107,1718952648551,-500.0,0.00054684,120]
[330028108,1718952648562,-500.0,0.00054684,120]
[330028109,1718952648571,-1922.42901168,0.00054684,120]
[330028110,1718952650256,-2703.50098832,0.00054684,120]
[330028111,1718952650266,-3501.87,0.00054684,120]
[330028112,1718952650276,-500.0,0.00054684,120]
[330028113,1718952650286,-227.16320884,0.00054685,14]
[330028114,1718952650295,-872.74,0.00054757,3]
[330028115,1718952650307,-151.0,0.00054765,14]
[330028116,1718952650317,-973.17,0.00054765,120]
[330028117,1718952650327,-9738.88259008,0.00054765,120]
[330028118,1718952650371,-6887.22740992,0.00054765,120]
[330028119,1718952650381,-550.55,0.00054765,120]
[330028120,1718952650391,-973.17,0.00054766,120]
[330028121,1718952650401,-973.17,0.00054766,120]
[330028122,1718952650410,-353.03961675,0.00054766,120]
[330028123,1718952717180,886.0756115,0.00040752,2]
[330028124,1718953541102,-197.31490802,0.00030908,2]
[330028125,1718953541123,-113.62581086,0.00030941,2]
[330028126,1718953625203,-166.647942,0.00030829,2]
[330028127,1718953632099,-133.352058,0.00030829,2]
[330028128,1718953632120,-188.7149358,0.0003083,2]
[330028129,1718953634302,-1000.0,0.0003083,2]
[330028130,1718953640233,-1000.0,0.0003083,2]
[330028131,1718953641099,-27295.43440409,0.0003083,2]
[330028132,1718953641133,-10208.61763793,0.0003083,2]
[330028133,1718953747069,166.2,0.00021096,2]
[330028134,1718953752134,-155.26293161,0.0003113,2]
[330028135,1718953752154,-12462.17207172,0.00032761,2]
[330028136,1718953752175,-372.50592829,0.00037357,4]
[330028137,1718953752196,-155.26293161,0.00041515,2]
[330028138,1718953752217,-517.0,0.00045034,30]
[330028139,1718953752237,-271.06252242,0.00046574,120]
[330028140,1718953752257,-22195.4757147,0.00046575,120]
[330028141,1718953752278,-242.55300442,0.00047302,4]
[330028142,1718953752300,-969.19971446,0.00047303,28]
[330028143,1718953752320,-1520.45539127,0.00047403,4]
[330028144,1718953752342,-1520.45539127,0.00047403,4]
[330028145,1718953752363,-517.0,0.00047404,30]
[330028146,1718953752384,-46416.39649128,0.00048,120]
[330028147,1718953766112,-1520.45539127,0.00047302,4]
[330028148,1718953766133,-12583.03805472,0.00048,120]
[330028149,1718953794622,1330.39846736,0.00037369,4]
[330028168,1718953832646,-517.0,0.00049899,30]
[330028170,1718953832656,-500.0,0.0005,2]
[330028172,1718953832666,-56359.23040942,0.00051,120]
[330028178,1718953832927,-2192.57760343,0.00051,120]
[330028186,1718953838425,166.647942,0.00039498,2]
[330028197,1718953838739,-11448.19198715,0.00051,120]
[330028199,1718953838748,-155.26293161,0.000519,2]
[330028201,1718953838758,-500.0,0.00051999,20]
[330028203,1718953838767,-50000.0,0.00052,120]
[330028204,1718953838777,-302.0,0.00052066,90]
[330028206,1718953838787,-517.0,0.00052526,30]
[330028208,1718953838796,-789.881,0.00053502,2]
[330028210,1718953838806,-600.0,0.0005367,120]
[330028211,1718953838815,-523.6,0.00053698,30]
[330028212,1718953838825,-156.09145754,0.00053971,4]
[330028213,1718953838834,-515.32,0.00053972,120]
[330028214,1718953838844,-2005.0,0.00054,120]
[330028215,1718953838854,-2000.0,0.00054,120]
[330028216,1718953838863,-349.64197741,0.00054246,120]
[330028217,1718953838872,-8258.195999,0.000543,120]
[330028218,1718953838882,-5253.9204863,0.00054491,120]
[330028219,1718953838895,-515.32,0.00054519,120]
[330028220,1718953838908,-515.32,0.00054519,120]
[330028221,1718953838917,-515.32,0.00054519,120]
[330028222,1718953838926,-515.32,0.00054519,120]
[330028223,1718953838939,-505.12211671,0.0005452,120]
[330028224,1718953838948,-500.00577325,0.0005452,120]
[330028225,1718953838957,-500.0,0.0005452,120]
[330028226,1718953838966,-500.0,0.0005452,120]
[330028227,1718953838977,-500.0,0.0005452,120]
[330028228,1718953838994,-604.3,0.0005452,120]
[330028229,1718953839008,-525.36894907,0.0005452,120]
[330028230,1718953839018,-540.44613334,0.0005452,120]
[330028231,1718953839029,-500.0,0.0005452,120]
[330028232,1718953839040,-500.0,0.0005452,120]
[330028233,1718953839050,-500.0,0.0005452,120]
[330028234,1718953839061,-500.0,0.0005452,120]
[330028235,1718953839071,-500.0,0.0005452,120]
[330028236,1718953839082,-500.0,0.0005452,120]
[330028237,1718953839092,-500.0,0.0005452,120]
[330028238,1718953839102,-500.0,0.0005452,120]
[330028239,1718953839112,-507.03697536,0.0005452,120]
[330028240,1718953839123,-511.67871819,0.0005452,120]
[330028241,1718953839134,-505.0246937,0.0005452,120]
[330028242,1718953839145,-500.0,0.0005452,120]
[330028243,1718953839157,-500.0,0.0005452,120]
[330028244,1718953839168,-500.0,0.0005452,120]
[330028245,1718953839178,-250.0,0.0005452,120]
[330028246,1718953839193,-500.0,0.0005452,120]
[330028247,1718953839203,-511.41172337,0.0005452,120]
[330028248,1718953839213,-500.0,0.0005452,120]
[330028249,1718953839223,-506.72102544,0.0005452,120]
[330028250,1718953839233,-500.0,0.0005452,120]
[330028251,1718953839243,-500.0,0.0005452,120]
[330028252,1718953839254,-500.0,0.0005452,120]
[330028253,1718953839264,-500.0,0.0005452,120]
[330028254,1718953839275,-500.0,0.0005452,120]
[330028255,1718953839285,-503.71952875,0.0005452,120]
[330028256,1718953839295,-500.0,0.0005452,120]
[330028257,1718953839305,-506.50316233,0.0005452,120]
[330028258,1718953839316,-500.0,0.0005452,120]
[330028259,1718953839326,-500.0,0.0005452,120]
[330028260,1718953839336,-1458.33,0.0005452,120]
[330028261,1718953839346,-500.0,0.0005452,120]
[330028262,1718953839357,-515.58744355,0.0005452,120]
[330028263,1718953839366,-503.60261346,0.0005452,120]
[330028264,1718953839377,-500.0,0.0005452,120]
[330028265,1718953839387,-505.4674531,0.0005452,120]
[330028266,1718953839396,-500.0,0.0005452,120]
[330028267,1718953839411,-500.0,0.0005452,120]
[330028268,1718953839420,-500.0,0.0005452,120]
[330028269,1718953839430,-500.0,0.0005452,120]
[330028270,1718953839439,-500.0,0.0005452,120]
[330028271,1718953839449,-500.0,0.0005452,120]
[330028272,1718953839458,-500.0,0.0005452,120]
[330028273,1718953839468,-500.0,0.0005452,120]
[330028274,1718953839478,-517.23,0.0005452,120]
[330028275,1718953839488,-500.0,0.0005452,120]
[330028276,1718953839498,-500.0,0.0005452,120]
[330028277,1718953839508,-500.0,0.0005452,120]
[330028278,1718953839518,-489.21725267,0.0005452,120]
[330028279,1718953839528,-572.69,0.0005452,120]
[330028280,1718953839539,-516.75789753,0.0005452,120]
[330028281,1718953839549,-517.07940995,0.0005452,120]
[330028282,1718953839559,-503.65953819,0.0005452,120]
[330028283,1718953839569,-500.0,0.0005452,120]
[330028284,1718953839579,-330.85818122,0.0005452,120]
[330028285,1718953839588,-500.0,0.0005452,120]
[330028286,1718953839599,-1317.48,0.0005452,120]
[330028287,1718953839609,-500.0,0.0005452,120]
[330028288,1718953839618,-990.63,0.0005452,120]
[330028289,1718953839629,-514.78525205,0.0005452,120]
[330028290,1718953839638,-548.06124739,0.0005452,120]
[330028291,1718953839648,-500.0,0.0005452,120]
[330028292,1718953839658,-508.83602575,0.0005452,120]
[330028293,1718953839668,-500.0,0.0005452,120]
[330028294,1718953839678,-500.0,0.0005452,120]
[330028295,1718953839688,-1097.36,0.0005452,120]
[330028296,1718953839698,-500.0,0.0005452,120]
[330028297,1718953839708,-500.0,0.0005452,7]
[330028298,1718953839718,-500.0,0.0005452,120]
[330028299,1718953839728,-403.88003978,0.0005452,120]
[330028300,1718953839737,-500.0,0.0005452,120]
[330028301,1718953839747,-500.0,0.0005452,120]
[330028302,1718953839756,-500.0,0.0005452,120]
[330028303,1718953839766,-500.0,0.0005452,120]
[330028304,1718953839776,-280.44831799,0.0005452,120]
[330028305,1718953839786,-500.0,0.0005452,120]
[330028306,1718953839796,-501.46797499,0.0005452,120]
[330028307,1718953839805,-3646.33,0.0005452,120]
[330028308,1718953839815,-425.30963849,0.0005452,120]
[330028309,1718953839825,-415.34769134,0.0005452,120]
[330028310,1718953839836,-503.72436098,0.0005452,120]
[330028311,1718953839846,-500.0,0.0005452,120]
[330028312,1718953839859,-500.0,0.0005452,120]
[330028313,1718953839868,-500.0,0.0005452,120]
[330028314,1718953839878,-523.45473494,0.0005452,120]
[330028315,1718953839893,-500.0,0.0005452,120]
[330028316,1718953839903,-500.0,0.0005452,120]
[330028317,1718953839913,-1115.99,0.0005452,120]
[330028318,1718953839922,-500.0,0.0005452,120]
[330028319,1718953839932,-554.24,0.0005452,120]
[330028320,1718953839942,-500.0,0.0005452,120]
[330028321,1718953839951,-498.25541486,0.0005452,120]
[330028322,1718953839961,-500.0,0.0005452,120]
[330028323,1718953839974,-500.0,0.0005452,30]
[330028324,1718953839984,-500.0,0.0005452,120]
[330028325,1718953839994,-500.0,0.0005452,120]
[330028326,1718953840004,-500.0,0.0005452,120]
[330028327,1718953840014,-500.0,0.0005452,120]
[330028328,1718953840024,-500.0,0.0005452,120]
[330028329,1718953840034,-502.4270916,0.0005452,120]
[330028330,1718953840043,-500.0,0.0005452,120]
[330028331,1718953840052,-500.0,0.0005452,120]
[330028332,1718953840062,-500.0,0.0005452,120]
[330028333,1718953840071,-500.0,0.0005452,120]
[330028334,1718953840080,-500.0,0.0005452,120]
[330028335,1718953840089,-500.0,0.0005452,120]
[330028336,1718953840098,-371.40601537,0.0005452,120]
[330028337,1718953840107,-500.0,0.0005452,120]
[330028338,1718953840116,-500.0,0.0005452,120]
[330028339,1718953840125,-500.0,0.0005452,120]
[330028340,1718953840135,-575.18,0.0005452,120]
[330028341,1718953840144,-500.0,0.0005452,120]
[330028342,1718953840155,-500.0,0.0005452,120]
[330028343,1718953840164,-500.0,0.0005452,120]
[330028344,1718953840174,-500.0,0.0005452,120]
[330028345,1718953840184,-500.0,0.0005452,120]
[330028346,1718953840193,-500.0,0.0005452,120]
[330028347,1718953840203,-500.0,0.0005452,120]
[330028348,1718953840212,-500.0,0.0005452,120]
[330028349,1718953840222,-500.0,0.0005452,120]
[330028350,1718953840232,-500.0,0.0005452,120]
[330028351,1718953840241,-500.0,0.0005452,120]
[330028352,1718953840251,-500.0,0.0005452,120]
[330028353,1718953840261,-502.70369893,0.0005452,120]
[330028354,1718953840270,-604.33,0.0005452,120]
[330028355,1718953840279,-500.0,0.0005452,120]
[330028356,1718953840288,-500.0,0.0005452,120]
[330028357,1718953840299,-500.0,0.0005452,120]
[330028358,1718953840308,-500.0,0.0005452,120]
[330028359,1718953840318,-637.3,0.0005452,120]
[330028360,1718953840327,-500.0,0.0005452,120]
[330028361,1718953840337,-500.0,0.0005452,120]
[330028362,1718953840346,-500.0,0.0005452,120]
[330028363,1718953840356,-500.0,0.0005452,120]
[330028364,1718953840366,-1004.74,0.0005452,120]
[330028367,1718953840375,-630.47,0.0005452,120]
[330028369,1718953840386,-500.0,0.0005452,120]
[330028374,1718953840506,-500.0,0.0005452,120]
[330028376,1718953840516,-744.74,0.0005452,120]
[330028378,1718953840525,-500.0,0.0005452,120]
[330028379,1718953840535,-500.0,0.0005452,120]
[330028380,1718953840545,-534.2,0.0005452,120]
[330028381,1718953840554,-500.0,0.0005452,120]
[330028382,1718953840564,-600.0,0.0005452,120]
[330028383,1718953840574,-500.0,0.0005452,120]
[330028384,1718953840584,-1201.92,0.0005452,120]
[330028385,1718953840594,-500.0,0.0005452,120]
[330028386,1718953840604,-500.0,0.0005452,120]
[330028387,1718953840614,-1423.05,0.0005452,120]
[330028388,1718953840624,-1744.69,0.0005452,120]
[330028389,1718953840634,-500.0,0.0005452,120]
[330028390,1718953840643,-500.0,0.0005452,120]
[330028391,1718953840654,-500.0,0.0005452,120]
[330028392,1718953840663,-500.0,0.0005452,20]
[330028393,1718953840673,-272.11923036,0.0005452,120]
[330028394,1718953840682,-500.0,0.0005452,120]
[330028395,1718953840692,-500.0,0.0005452,2]
[330028396,1718953840702,-1030.75,0.0005452,120]